bitfinex-derivatives/quotes_ETHF0:USTF0_20241207
["timestamp","ask_amount","ask_price","bid_price","bid_amount"]
[1733570804635,0.17463,4004.1,4004.0,1.94334799]
[1733570804847,0.17463,4004.1,4004.0,2.11798799]
[1733570805032,0.414,4004.5,4004.0,1.94334799]
[1733570805633,0.58862,4004.5,4004.4,0.17462]
[1733570806132,0.58862,4004.5,4004.1,0.3847]
[1733570806332,0.17462,4004.4,4004.3,0.17462]
[1733570806534,0.17462,4004.3,4004.2,0.17463]
[1733570807242,0.17463,4004.3,4004.2,0.17463]
[1733570807940,0.17462,4004.3,4004.2,0.17463]
[1733570808441,0.414,4004.5,4004.1,0.3847]
[1733570808641,0.17463,4004.2,4004.1,0.55933]
[1733570809338,0.17463,4004.2,4004.1,0.3847]
[1733570809736,0.414,4004.5,4004.0,2.11797799]
[1733570809945,0.414,4004.5,4004.0,1.94334799]
[1733570810147,0.17463,4004.1,4004.0,2.11797799]
[1733570810337,0.17463,4004.1,4004.0,1.94334799]
[1733570810534,0.414,4004.5,4003.8,3.2078]
[1733570810734,0.17464,4003.9,4003.8,3.2078]
[1733570811034,0.17464,4003.9,4003.8,3.38244]
[1733570811242,0.17464,4004.0,4003.9,0.17464]
[1733570811935,0.414,4004.5,4003.8,3.2078]
[1733570812141,0.17464,4003.9,4003.8,3.2078]
[1733570812950,0.17465,4003.6,4003.5,40.8]
[1733570813448,0.17466,4003.4,4003.3,1.94334799]
[1733570813636,0.17466,4003.4,4003.3,2.11801799]
[1733570813843,0.17466,4003.4,4003.3,42.91801799]
[1733570814647,0.17466,4003.4,4003.3,42.74334799]
[1733570815846,0.17467,4003.2,4003.1,3.2078]
[1733570816253,0.17467,4003.2,4003.1,44.0078]
[1733570817245,0.17467,4003.2,4003.1,44.18248]
[1733570817446,0.17467,4003.2,4003.1,44.0078]
[1733570818249,0.17467,4003.2,4003.1,40.8]
[1733570819348,0.20456665,4003.2,4003.1,40.8]
[1733570819940,0.20456665,4003.2,4002.6,0.3757]
[1733570819941,0.1747,4002.5,4002.4,3.2078]
[1733570820449,0.02989665,4002.5,4002.2,41.1997]
[1733570820752,0.17471,4002.3,4002.2,41.1997]
[1733570821249,0.17471,4002.3,4002.2,40.8]
[1733570821445,0.02989665,4002.3,4001.9,0.05399]
[1733570821651,0.17472,4002.0,4001.9,0.05399]
[1733570821854,0.17472,4002.0,4001.9,0.22872]
[1733570822052,0.17472,4002.0,4001.9,0.05399]
[1733570822547,0.20461665,4002.0,4001.9,0.05399]
[1733570823761,0.02989665,4002.0,4001.9,0.22872]
[1733570823953,3.2078,4003.1,4001.9,0.95281928]
[1733570824246,0.17467,4003.3,4002.7,0.17469]
[1733570824454,0.17469,4002.9,4002.8,40.8]
[1733570825453,3.5856,4003.3,4003.2,0.17467]
[1733570825454,0.55247,4003.3,4003.2,0.17467]
[1733570825847,0.3781,4003.4,4002.8,45.95114799]
[1733570826044,0.17465,4003.7,4003.3,0.17467]
[1733570826254,0.17465,4003.7,4003.2,0.17467]
[1733570826255,0.17467,4003.3,4003.2,0.17467]
[1733570826556,0.3781,4003.7,4003.2,0.17467]
[1733570826758,0.17465,4003.6,4003.1,0.17467]
[1733570826948,0.17467,4003.3,4003.1,0.17467]
[1733570827148,0.17467,4003.3,4003.2,0.17467]
[1733570827347,0.17467,4003.3,4002.9,0.4061]
[1733570827658,0.3781,4003.7,4002.9,0.4061]
[1733570827855,0.3781,4003.7,4002.8,44.0078]
[1733570828062,0.3781,4003.7,4003.0,0.17468]
[1733570828063,0.17468,4003.1,4003.0,0.17468]
[1733570828357,0.17468,4003.1,4002.8,44.0078]
[1733570828358,0.17468,4003.0,4002.9,0.17468]
[1733570828658,0.3781,4003.7,4002.8,44.0078]
[1733570828949,0.17468,4003.1,4003.0,0.17468]
[1733570829156,0.17468,4003.2,4003.0,0.17468]
[1733570829452,0.3781,4003.7,4002.8,3.2078]
[1733570829659,0.3781,4003.7,4003.5,0.17466]
[1733570829660,0.17466,4003.6,4003.5,0.17466]
[1733570830151,3.2078,4003.8,4002.8,5.15114799]
[1733570830344,20.26041,4004.1,4003.5,3.2078]
[1733570830548,20.26041,4004.1,4004.0,0.17464]
[1733570830953,20.26041,4004.1,4003.6,42.0229]
[1733570831150,20.26041,4004.1,4003.6,1.2229]
[1733570831457,20.26041,4004.1,4003.5,0.17466]
[1733570831749,0.17466,4003.4,4003.0,1.1946]
[1733570831954,0.17466,4003.4,4003.2,0.17467]
[1733570832353,0.17467,4003.4,4003.2,0.17467]
[1733570832657,0.7792,4003.7,4003.2,0.17467]
[1733570832855,0.7792,4003.7,4003.0,1.1946]
[1733570833155,0.7792,4003.7,4003.0,0.57128]
[1733570833156,0.17467,4003.2,4003.0,0.57128]
[1733570833352,0.17467,4003.2,4003.0,0.3966]
[1733570833655,0.17467,4003.2,4003.0,0.57128]
[1733570833856,0.17468,4003.1,4003.0,0.3966]
[1733570834154,0.7792,4003.7,4003.0,0.3966]
[1733570834659,0.17468,4003.2,4003.0,0.57128]
[1733570835056,0.7792,4003.7,4003.0,0.3966]
[1733570835355,0.17468,4003.1,4003.0,0.3966]
[1733570835949,0.7792,4003.7,4003.0,0.3966]
[1733570836157,0.95385,4003.7,4003.0,0.8004]
[1733570836354,0.95385,4003.7,4003.6,0.17465]
[1733570836551,0.95385,4003.7,4003.0,0.8004]
[1733570836751,0.17465,4003.6,4003.5,0.17466]
[1733570837048,0.17467,4003.4,4003.2,0.17467]
[1733570837451,0.17467,4003.3,4003.2,0.17467]
[1733570837651,0.17466,4003.5,4003.3,0.17466]
[1733570837858,0.7792,4003.7,4003.0,0.8004]
[1733570838058,0.17467,4003.4,4003.2,0.17467]
[1733570838563,0.7792,4003.7,4003.2,0.17467]
[1733570838771,0.17467,4003.4,4003.0,41.6004]
[1733570839063,0.17466,4003.5,4003.4,0.17466]
[1733570839357,20.26041,4004.1,4003.0,41.6004]
[1733570839559,1.187,4003.9,4003.0,0.8004]
[1733570840066,0.17465,4003.7,4003.5,0.17466]
[1733570840357,1.187,4003.9,4003.5,0.17466]
[1733570840358,0.17465,4003.6,4003.5,0.17466]
[1733570840564,0.17465,4003.6,4003.4,0.17466]
[1733570840761,0.17465,4003.6,4003.5,0.17466]
[1733570841263,0.17465,4003.6,4003.0,0.8004]
[1733570841462,0.17465,4003.6,4003.4,0.17466]
[1733570842063,0.17465,4003.7,4003.5,0.17466]
[1733570842365,0.17466,4003.5,4003.4,0.17466]
[1733570843158,2.94704435,4003.8,4003.0,0.8004]
[1733570843362,0.17466,4003.5,4003.3,0.17466]
[1733570843558,2.94704435,4003.8,4003.0,0.8004]
[1733570843866,0.17466,4003.5,4003.4,0.17466]
[1733570844167,0.17466,4003.6,4003.5,0.17466]
[1733570844558,2.94704435,4003.8,4003.0,0.8004]
[1733570844757,0.17466,4003.5,4003.4,0.17466]
[1733570844957,2.94704435,4003.8,4003.0,0.8004]
[1733570845267,0.17466,4003.6,4003.5,0.17466]
[1733570845960,2.94704435,4004.0,4003.4,3.2078]
[1733570846272,20.43504,4004.1,4004.0,0.17464]
[1733570846763,20.26041,4004.1,4003.6,0.4137]
[1733570847066,0.17465,4003.9,4003.8,0.17464]
[1733570847366,0.17465,4003.8,4003.7,0.17465]
[1733570847770,20.26041,4004.1,4003.6,0.4137]
[1733570847961,20.26041,4004.1,4003.7,0.17465]
[1733570847962,0.17465,4003.8,4003.7,0.17465]
[1733570848659,20.26041,4004.1,4003.6,0.4137]
[1733570848660,0.17464,4003.9,4003.8,0.17464]
[1733570849265,0.17464,4004.0,4003.9,0.17464]
[1733570849466,20.26041,4004.1,4003.6,0.4137]
[1733570849665,0.413,4003.9,4003.8,0.17464]
[1733570850465,0.58764,4003.9,4003.8,0.17464]
[1733570850663,0.413,4003.9,4003.8,0.17464]
[1733570850862,0.58764,4003.9,4003.8,0.17464]
[1733570851266,0.413,4003.9,4003.8,0.17464]
[1733570851864,0.17464,4004.0,4003.6,0.4137]
[1733570852064,0.17464,4004.0,4003.8,0.17464]
[1733570852262,0.17464,4004.0,4003.9,0.17464]
[1733570852863,20.26041,4004.1,4003.6,0.4137]
[1733570853065,0.3847,4003.9,4003.8,0.17464]
[1733570853469,0.55934,4003.9,4003.8,0.17464]
[1733570853860,0.3847,4003.9,4003.8,0.17464]
[1733570856163,0.3847,4003.9,4003.6,0.4137]
[1733570856164,0.17465,4003.8,4003.7,0.17465]
[1733570856364,0.4055,4003.8,4003.7,0.17465]
[1733570857663,0.58015,4003.8,4003.7,0.17465]
[1733570857972,0.4055,4003.8,4003.7,0.17465]
[1733570862666,0.4055,4003.8,4003.7,1.07272997]
[1733570863564,0.58015,4003.8,4003.7,1.07272997]
[1733570863770,0.99275,4003.8,4003.7,1.07272997]
[1733570863967,0.99275,4003.8,4003.4,3.87148032]
[1733570863968,0.8181,4003.8,4003.4,3.87148032]
[1733570864164,0.3847,4003.9,4003.6,0.89807997]
[1733570864370,0.3847,4003.9,4003.8,0.17465]
[1733570864870,20.43505,4004.1,4004.0,0.17464]
[1733570865371,20.26041,4004.1,4003.6,3.87148032]
[1733570865568,0.17466,4003.4,4003.3,4.04615032]
[1733570865874,0.43661,4003.9,4003.4,0.17466]
[1733570866173,0.17466,4003.4,4003.3,0.17467]
[1733570866370,0.17465,4003.8,4003.2,41.87274997]
[1733570866567,0.17467,4003.3,4003.2,41.87274997]
[1733570866770,0.17467,4003.3,4003.2,41.69807997]
[1733570867278,0.17467,4003.3,4003.2,0.89807997]
[1733570869677,0.17467,4003.3,4003.2,4.76956029]
[1733570871778,0.17467,4003.2,4003.1,3.87148032]
[1733570872170,0.17468,4003.1,4003.0,48.77736029]
[1733570874679,6.15484435,4003.6,4003.0,48.77736029]
[1733570874879,0.17467,4003.2,4003.1,4.04616032]
[1733570875079,0.17467,4003.2,4003.1,3.87148032]
[1733570875376,3.2078,4003.6,4003.0,48.77736029]
[1733570875377,6.15484435,4003.6,4003.0,48.77736029]
[1733570875578,0.17467,4003.2,4003.0,48.95204029]
[1733570875875,6.15484435,4003.6,4003.0,48.95204029]
[1733570876075,0.17468,4003.2,4003.0,48.95204029]
[1733570876295,6.15484435,4003.6,4003.0,48.95204029]
[1733570876486,0.17468,4003.1,4003.0,48.77736029]
[1733570876775,0.17468,4003.1,4003.0,48.95204029]
[1733570876979,0.17468,4003.1,4003.0,48.79381569]
[1733570877175,0.17468,4003.1,4003.0,44.90587997]
[1733570877376,0.17468,4003.1,4003.0,48.79392033]
[1733570879182,0.17468,4003.1,4003.0,44.90587997]
[1733570880581,2.94704435,4003.2,4003.0,44.90587997]
[1733570880885,0.17468,4003.1,4003.0,45.08055997]
[1733570881077,0.17468,4003.1,4003.0,44.90587997]
[1733570881277,0.17468,4003.1,4003.0,45.08055997]
[1733570881882,0.17468,4003.1,4003.0,44.90587997]
[1733570882081,2.94704435,4003.2,4003.0,44.90587997]
[1733570882387,0.17468,4003.1,4003.0,45.08055997]
[1733570882774,2.94704435,4003.2,4003.1,0.17468]
[1733570882775,3.12172435,4003.2,4003.1,0.17468]
[1733570882979,2.94704435,4003.3,4003.0,44.90587997]
[1733570883178,3.12170435,4003.5,4003.0,44.90587997]
[1733570883375,0.17466,4003.5,4003.4,0.89807997]
[1733570883585,3.11812077,4003.5,4003.4,0.89807997]
[1733570884385,0.17466,4003.5,4003.4,0.89807997]
[1733570884583,3.11808998,4003.5,4003.4,1.07273997]
[1733570885986,3.11808998,4003.5,4003.4,0.89807997]
[1733570886887,3.11808998,4003.5,4003.4,1.07273997]
[1733570887083,3.11808998,4003.5,4003.4,0.89807997]
[1733570887284,0.17466,4003.5,4003.4,4.96078033]
[1733570888091,0.17466,4003.5,4003.4,4.78612033]
[1733570888385,0.17466,4003.5,4003.4,5.35418033]
[1733570888581,0.17466,4003.5,4003.4,5.17952033]
[1733570888788,0.17466,4003.5,4003.4,0.89807997]
[1733570889484,0.17466,4003.5,4003.4,1.07273997]
[1733570889682,0.17466,4003.5,4003.4,0.89807997]
[1733570890792,0.17466,4003.5,4003.4,1.07273997]
[1733570892489,0.17466,4003.5,4003.4,4.96078033]
[1733570892976,0.17465,4003.8,4003.5,0.17466]
[1733570893180,0.17465,4003.7,4003.5,0.17466]
[1733570893395,4.4301,4003.9,4003.5,0.17466]
[1733570893683,0.17465,4003.6,4003.5,0.17466]
[1733570893885,0.17465,4003.6,4003.5,4.06270036]
[1733570894084,0.17465,4003.8,4003.5,4.06270036]
[1733570894286,2.94342998,4003.6,4003.5,0.57576]
[1733570894484,3.11807998,4003.6,4003.5,0.57576]
[1733570894679,0.17465,4003.6,4003.5,0.57576]
[1733570895179,3.11828534,4003.6,4003.5,0.57576]
[1733570895590,3.11828534,4003.6,4003.5,0.4011]
[1733570895883,3.11828534,4003.6,4003.5,0.57576]
[1733570895884,0.17465,4003.6,4003.5,0.57576]
[1733570896084,3.11840021,4003.6,4003.5,0.57576]
[1733570896287,3.11840021,4003.6,4003.5,1.29917997]
[1733570896490,3.11840021,4003.6,4003.5,1.47383997]
[1733570896694,3.11840021,4003.6,4003.1,0.3934]
[1733570896695,2.94375021,4003.6,4003.1,0.3934]
[1733570896884,2.94375021,4003.5,4003.1,0.3934]
[1733570897087,0.17467,4003.3,4003.2,0.17467]
[1733570897393,0.17467,4003.4,4003.3,0.17467]
[1733570897589,3.93629651,4003.6,4003.1,0.3934]
[1733570897888,0.17465,4003.6,4003.5,0.89807997]
[1733570898391,4.10013666,4003.6,4003.5,0.89807997]
[1733570899388,0.17465,4003.6,4003.5,0.89807997]
[1733570901491,0.17467,4003.2,4003.1,0.56807]
[1733570901688,3.11954813,4003.2,4003.1,1.46614997]
[1733570902287,0.17467,4003.2,4003.1,12.1308271]
[1733570902486,0.17467,4003.2,4003.1,12.3055071]
[1733570906301,0.17467,4003.2,4003.1,12.1308271]
[1733570906896,0.17467,4003.2,4003.1,12.3055071]
[1733570907093,0.17467,4003.2,4003.1,7.27338045]
[1733570907299,0.17467,4003.2,4003.1,12.30665646]
[1733570907592,0.17467,4003.2,4003.1,6.49943598]
[1733570908190,0.17467,4003.2,4003.1,6.32425076]
[1733570908601,0.17467,4003.2,4003.1,6.49893076]
[1733570909098,0.92967,4003.3,4003.2,0.17467]
[1733570909695,0.17467,4003.2,4003.1,1.46614997]
[1733570909897,3.1211944,4003.2,4003.1,1.46614997]
[1733570911397,2.9465244,4003.3,4003.1,2.18955994]
[1733570911702,2.9465244,4003.4,4003.3,0.17467]
[1733570911897,2.947162,4003.4,4003.2,3.88804005]
[1733570912098,2.947162,4003.4,4003.3,0.17467]
[1733570912402,4.10116417,4003.6,4003.3,0.89807997]
[1733570912403,0.4035,4003.5,4003.3,0.89807997]
[1733570912603,0.57816,4003.5,4003.4,0.17466]
[1733570912899,4.50466417,4003.5,4003.4,0.17466]
[1733570913199,3.92650417,4003.6,4003.4,0.17466]
[1733570913396,4.10115417,4003.6,4003.5,1.48023997]
[1733570913591,0.17465,4003.6,4003.5,1.48023997]
[1733570913801,4.10115417,4003.7,4003.6,0.17465]
[1733570914003,3.92650417,4003.7,4003.6,0.17465]
[1733570914301,3.38245,4003.8,4003.7,0.17465]
[1733570914490,3.2078,4003.8,4003.7,0.17465]
[1733570914690,3.2078,4003.8,4003.6,0.3896]
[1733570914691,2.94663008,4003.8,4003.6,4.27764005]
[1733570914997,2.94663008,4004.0,4003.9,0.17464]
[1733570915200,23.20704008,4004.1,4003.9,4.78410787]
[1733570915495,20.26041,4004.1,4004.0,3.38244]
[1733570915695,20.26041,4004.1,4004.0,7.2684679]
[1733570916099,20.26041,4004.1,4004.0,44.18244]
[1733570917203,20.26041,4004.1,4004.0,44.32884379]
[1733570917699,20.26041,4004.1,4004.0,57.1182587]
[1733570918408,20.26041,4004.1,4004.0,49.20758344]
[1733570918599,20.26041,4004.1,4004.0,49.35391671]
[1733570918801,20.26041,4004.1,4004.0,49.20758344]
[1733570920505,20.26041,4004.1,4004.0,55.02559443]
[1733570921713,20.26041,4004.1,4004.0,50.00045099]
[1733570922004,20.26041,4004.1,4004.0,55.02016525]
[1733570922396,20.26041,4004.1,4004.0,49.20215426]
[1733570923001,20.26041,4004.1,4004.0,55.02016525]
[1733570923508,20.26041,4004.1,4004.0,49.20215426]
[1733570923703,20.26041,4004.1,4004.0,55.02016525]
[1733570924502,20.26041,4004.1,4004.0,44.18244]
[1733570927502,20.26041,4004.1,4004.0,44.58694]
[1733570930409,20.26041,4004.1,4004.0,45.48501997]
[1733570930809,20.26041,4004.1,4004.0,44.58694]
[1733570931413,20.26041,4004.1,4004.0,45.48501997]
[1733570931710,20.26041,4004.1,4004.0,56.31753843]
[1733570931914,20.26041,4004.1,4004.0,55.41945846]
[1733570932410,20.26041,4004.1,4004.0,55.56551158]
[1733570932712,20.26041,4004.1,4004.0,55.41945846]
[1733570936518,20.26041,4004.1,4004.0,55.4185121]
[1733570937611,20.26041,4004.1,4004.0,56.31659207]
[1733570937819,20.26041,4004.1,4004.0,60.76502419]
[1733570937820,15.01748066,4004.1,4004.0,60.76502419]
[1733570938122,11.19757154,4004.1,4004.0,75.47035549]
[1733570938422,0.8203,4005.5,4005.4,0.17458]
[1733570938623,0.8203,4005.5,4005.4,1.07265997]
[1733570939122,0.8203,4005.5,4005.4,41.87265997]
[1733570941825,0.99487,4005.5,4005.4,41.87265997]
[1733570942218,0.8203,4005.5,4005.4,41.87265997]
[1733570942420,0.99487,4005.5,4005.4,41.87265997]
[1733570942622,0.8203,4005.5,4005.4,41.87265997]
[1733570943321,0.8203,4005.5,4005.4,1.07265997]
[1733570944016,0.4069,4005.5,4005.4,1.97073994]
[1733570944217,0.4069,4005.5,4005.4,1.07265997]
[1733570944722,0.4069,4005.5,4005.4,1.97073994]
[1733570945119,0.374,4005.7,4005.6,0.17457]
[1733570945315,0.3801,4005.8,4005.4,1.79615994]
[1733570945520,0.3801,4005.8,4005.7,1.07263997]
[1733570945720,0.3801,4005.8,4005.7,4.28043997]
[1733570946323,0.3801,4005.8,4005.7,4.92843997]
[1733570947825,0.4037,4006.3,4005.7,4.75387997]
[1733570948131,0.4037,4006.3,4006.2,1.07261997]
[1733570950030,0.57824,4006.3,4006.2,1.07261997]
[1733570950531,0.4037,4006.3,4006.2,1.07261997]
[1733570950932,0.57824,4006.3,4006.2,1.07261997]
[1733570951620,0.57824,4006.3,4006.2,0.89807997]
[1733570957031,3.2078,4006.7,4006.2,6.79615994]
[1733570957229,0.1745,4007.2,4006.6,4.10587997]
[1733570957535,0.17449,4007.3,4007.1,0.1745]
[1733570957836,0.17449,4007.4,4007.2,0.17449]
[1733570958032,0.17449,4007.4,4007.3,0.89807997]
[1733570958536,4.87527997,4007.9,4006.7,0.648]
[1733570958745,0.1745,4007.2,4007.1,0.89807997]
[1733570958925,0.5756,4007.2,4007.1,0.89807997]
[1733570959436,0.4011,4007.2,4006.6,3.2078]
[1733570959737,0.17452,4006.8,4006.6,3.2078]
[1733570960033,0.17452,4006.7,4006.6,3.2078]
[1733570960336,0.57862,4006.7,4006.6,3.2078]
[1733570960724,0.57862,4006.7,4006.6,0.89807997]
[1733570971445,3.78642,4006.7,4006.6,0.89807997]
[1733570971647,0.57862,4006.7,4006.6,0.89807997]
[1733570971850,3.78642,4006.7,4006.6,0.89807997]
[1733570972045,3.6119,4006.7,4006.6,1.07259997]
[1733570972240,0.4011,4007.2,4006.6,1.07259997]
[1733570972241,3.6089,4007.2,4006.6,0.89807997]
[1733570972436,0.17452,4006.8,4006.7,0.98622]
[1733570973042,0.17452,4006.8,4006.7,41.78622]
[1733570973243,0.17451,4006.9,4006.7,41.6117]
[1733570973452,0.17451,4006.9,4006.8,0.17451]
[1733570975346,4.0078,4007.2,4006.8,0.89807997]
[1733570975547,4.1823,4007.2,4007.1,0.89807997]
[1733570975952,4.1823,4007.2,4007.1,1.07257997]
[1733570976250,4.0078,4007.2,4007.1,1.07257997]
[1733570976448,3.2078,4007.2,4007.1,1.07257997]
[1733570976640,0.17448,4007.6,4007.5,0.17448]
[1733570976844,1.1914,4007.8,4007.5,0.89807997]
[1733570977245,1.1914,4007.8,4007.6,0.17448]
[1733570977246,0.17448,4007.7,4007.6,0.17448]
[1733570978049,0.17448,4007.6,4007.5,1.07255997]
[1733570978449,0.17448,4007.7,4007.6,0.17448]
[1733570978649,1.1914,4007.8,4007.5,0.89807997]
[1733570978853,1.1914,4007.8,4007.5,1.07255997]
[1733570979659,0.17448,4007.6,4007.5,1.07255997]
[1733570979858,0.17448,4007.6,4007.5,0.89807997]
[1733570980061,0.17448,4007.6,4007.5,41.87255997]
[1733570980359,0.17448,4007.6,4007.5,41.69807997]
[1733570980859,1.1914,4007.8,4007.0,3.2078]
[1733570981052,1.1914,4007.8,4007.3,0.89807997]
[1733570981246,1.1914,4007.8,4007.6,0.89807997]
[1733570981247,0.17448,4007.7,4007.6,0.89807997]
[1733570982667,0.8006,4007.8,4007.0,3.2078]
[1733570982871,0.17449,4007.3,4007.2,0.17449]
[1733570983069,0.1745,4007.2,4007.1,0.1745]
[1733570984669,0.1745,4007.2,4007.1,1.07257997]
[1733570985561,0.1745,4007.2,4007.1,0.89807997]
[1733570986472,3.90420819,4007.2,4007.1,0.89807997]
[1733570987872,3.10200819,4007.2,4007.1,0.89807997]
[1733570989272,4.30724425,4007.3,4006.7,0.8117]
[1733570989573,4.30724425,4007.3,4007.1,1.07257997]
[1733570989574,3.11128075,4007.2,4007.1,1.07257997]
[1733570990172,2.93678075,4007.3,4007.1,0.89807997]
[1733570990368,3.11128075,4007.3,4007.2,0.1745]
[1733570991870,0.1745,4007.3,4007.2,0.1745]
[1733570992474,0.1745,4007.3,4007.2,0.5773]
[1733570992676,0.17449,4007.4,4007.3,0.17449]
[1733570992978,0.17449,4007.4,4007.3,0.56689]
[1733570993179,0.17449,4007.4,4007.3,0.96689]
[1733570993471,0.17449,4007.4,4007.3,41.5924]
[1733570993672,0.17449,4007.4,4007.3,41.76689]
[1733570993879,0.17449,4007.4,4007.3,41.5924]
[1733570994968,0.17449,4007.4,4007.3,41.2]
[1733570995168,0.4019,4007.5,4007.1,0.89807997]
[1733570995473,0.1745,4007.2,4007.1,1.07257997]
[1733570995676,0.1745,4007.2,4007.1,0.89807997]
[1733570996180,0.1745,4007.2,4007.1,1.07257997]
[1733570996478,0.1745,4007.2,4007.1,0.89807997]
[1733570996776,0.1745,4007.1,4007.0,3.2078]
[1733570997072,0.1745,4007.1,4007.0,4.10587997]
[1733570997673,0.1745,4007.1,4007.0,4.28038997]
[1733570997879,0.1745,4007.1,4007.0,4.10587997]
[1733570998175,0.8245,4007.4,4007.0,4.10587997]
[1733570998378,0.17449,4007.4,4007.3,0.89807997]
[1733571001176,5.05367032,4007.4,4007.3,0.89807997]
[1733571001482,5.43707032,4007.4,4007.3,0.89807997]
[1733571004177,0.3834,4007.4,4007.0,3.2078]
[1733571004372,4.09366358,4007.1,4007.0,3.2078]
[1733571005071,0.17451,4006.8,4006.7,0.4093]
[1733571005270,0.17451,4006.8,4006.7,1.30737997]
[1733571005471,0.17451,4006.8,4006.7,0.89807997]
[1733571005880,5.07346447,4006.8,4006.7,0.89807997]
[1733571006275,0.17451,4006.8,4006.7,0.89807997]
[1733571006472,5.07346447,4006.8,4006.7,0.89807997]
[1733571006882,0.17451,4006.8,4006.7,0.89807997]
[1733571007582,0.43626,4007.1,4006.7,0.89807997]
[1733571007583,2.93978857,4007.1,4006.7,0.89807997]
[1733571007775,0.17451,4006.8,4006.7,0.89807997]
[1733571007976,0.17451,4006.8,4006.7,1.07259997]
[1733571008172,0.17451,4006.8,4006.7,0.89807997]
[1733571009175,3.32078857,4007.2,4006.7,0.89807997]
[1733571009379,0.17451,4006.9,4006.8,0.55361]
[1733571009586,0.381,4007.2,4006.8,0.3791]
[1733571009882,0.17451,4007.0,4006.9,40.97451]
[1733571010084,0.17451,4007.0,4006.9,41.35391]
[1733571011177,0.381,4007.2,4007.0,0.1745]
[1733571011381,0.381,4007.2,4007.1,0.1745]
[1733571011382,0.1745,4007.2,4007.1,0.1745]
[1733571011579,3.32028857,4007.6,4006.9,42.07747997]
[1733571011782,0.17448,4007.5,4007.4,0.89807997]
[1733571012587,0.1745,4007.2,4007.1,0.89807997]
[1733571013487,0.17451,4007.0,4006.9,0.3794]
[1733571013680,0.17451,4007.0,4006.9,1.27747997]
[1733571014183,0.58171,4007.0,4006.9,1.27747997]
[1733571014782,0.58171,4007.0,4006.9,1.45198997]
[1733571014983,0.58171,4007.0,4006.9,1.27747997]
[1733571016184,0.58171,4007.0,4006.9,0.89807997]
[1733571017284,0.58171,4007.0,4006.6,0.385]
[1733571017285,0.17452,4006.7,4006.6,0.385]
[1733571018182,0.17452,4006.6,4006.5,4.10587997]
[1733571019286,0.3941,4006.7,4006.3,40.8]
[1733571019287,3.33388857,4006.7,4006.3,40.8]
[1733571019484,0.17453,4006.4,4006.3,40.8]
[1733571021589,0.3858,4006.5,4006.2,0.89807997]
[1733571021788,0.57464,4006.3,4006.2,0.89807997]
[1733571021982,0.57464,4006.3,4005.9,0.89807997]
[1733571022182,0.17456,4005.8,4005.7,0.3745]
[1733571022384,3.11625305,4005.8,4005.7,0.3745]
[1733571023990,0.17456,4005.8,4005.7,1.27257997]
[1733571027692,0.17456,4005.8,4005.7,0.3745]
[1733571027889,0.17456,4005.8,4005.7,1.27257997]
[1733571030692,0.8197,4006.1,4005.6,41.69807997]
[1733571030693,0.17456,4005.7,4005.6,41.69807997]
[1733571030891,0.58206,4005.7,4005.6,0.89807997]
[1733571032295,0.17456,4005.7,4005.6,0.89807997]
[1733571032500,0.17457,4005.6,4005.5,3.2078]
[1733571032703,0.17457,4005.6,4005.5,4.10587997]
[1733571033795,0.17457,4005.6,4005.5,0.89807997]
[1733571034601,0.43639,4005.9,4005.4,41.9642]
[1733571034803,0.17457,4005.6,4005.5,0.89807997]
[1733571035099,0.89807997,4005.9,4005.2,3.2078]
[1733571035406,0.17458,4005.3,4005.2,3.2078]
[1733571038097,0.3824,4005.4,4005.0,0.89807997]
[1733571038098,0.17459,4005.1,4005.0,0.89807997]
[1733571038294,0.17459,4005.0,4004.9,40.8]
[1733571038893,0.1746,4004.9,4004.8,0.3957]
[1733571039502,0.43647,4005.2,4004.7,44.3808]
[1733571039503,0.43647,4005.2,4004.7,44.0078]
[1733571039702,1.3527,4004.8,4004.7,44.0078]
[1733571039994,1.3527,4004.8,4004.6,0.89807997]
[1733571039995,0.17461,4004.7,4004.6,0.89807997]
[1733571040407,0.17461,4004.7,4004.6,41.69807997]
[1733571041100,0.17461,4004.7,4004.6,40.8]
[1733571042008,0.17462,4004.5,4004.4,1.29927997]
[1733571042404,0.17462,4004.5,4004.4,42.09927997]
[1733571045309,0.17462,4004.5,4004.4,0.4012]
[1733571047705,0.17463,4004.1,4004.0,0.38247]
[1733571048217,0.17463,4004.1,4004.0,41.18247]
[1733571048706,0.17463,4004.1,4004.0,0.38247]
[1733571054010,1.07270997,4004.1,4004.0,0.38247]
[1733571057218,0.17465,4003.8,4003.7,3.2078]
[1733571057617,0.17465,4003.7,4003.6,0.4109]
[1733571057813,0.17465,4003.6,4003.5,40.8]
[1733571060215,0.56765,4003.6,4003.5,40.8]
[1733571060410,0.56765,4003.6,4003.4,0.3985]
[1733571060411,0.17466,4003.5,4003.4,0.3985]
[1733571060615,1.07273997,4003.5,4003.4,0.3985]
[1733571060816,0.89807997,4003.5,4003.0,3.2078]
[1733571061012,1.33473997,4003.5,4003.1,0.3742]
[1733571061315,0.17467,4003.2,4003.1,0.3742]
[1733571062122,0.17467,4003.2,4003.1,41.1742]
[1733571062822,0.44494029,4003.2,4003.1,41.1742]
[1733571063209,1.34302026,4003.2,4003.1,0.3742]
[1733571063719,1.34302026,4003.2,4002.7,0.7919]
[1733571063720,0.17469,4002.8,4002.7,0.7919]
[1733571063919,0.44496029,4002.8,4002.7,0.7919]
[1733571065914,0.44496029,4002.8,4002.5,3.2078]
[1733571065915,0.27027029,4002.8,4002.5,3.2078]
[1733571066115,0.1747,4002.6,4002.5,3.2078]
[1733571066918,0.44497029,4002.6,4002.5,3.2078]
[1733571067119,0.27027029,4002.6,4002.5,3.3825]
[1733571067423,0.405,4003.6,4002.5,44.24806771]
[1733571067628,0.405,4003.6,4003.3,0.17467]
[1733571067818,3.38246,4003.4,4003.3,0.17467]
[1733571068124,3.2078,4003.4,4003.3,0.17467]
[1733571068325,3.38246,4003.4,4003.3,40.97467]